[Event "*** SCC Grand Prix: Titled Tuesday Blitz"]
[Site "Chess.com"]
[Date "2020.10.06"]
[Round "9"]
[White "severomorskij"]
[Black "blitzking1729"]
[Result "1-0"]
[WhiteElo "2781"]
[BlackElo "2558"]
[TimeControl "180+1"]
[EndTime "11:46:08 PDT"]
[Termination "severomorskij won by resignation"]

1. d4 {[%clk 0:03:00.9]} 1... d5 {[%clk 0:02:57.4]} 2. c4 {[%clk 0:03:00.8]}
2... e6 {[%clk 0:02:57.3]} 3. Nc3 {[%clk 0:03:01]} 3... c5 {[%clk 0:02:56.1]} 4.
e3 {[%clk 0:03:00.6]} 4... Nf6 {[%clk 0:02:53.3]} 5. Nf3 {[%clk 0:03:00.5]} 5...
Nc6 {[%clk 0:02:52.5]} 6. cxd5 {[%clk 0:03:00.2]} 6... exd5 {[%clk 0:02:53.4]}
7. Bb5 {[%clk 0:02:59.8]} 7... Bd6 {[%clk 0:02:53.4]} 8. dxc5 {[%clk 0:03:00]}
8... Bxc5 {[%clk 0:02:53.5]} 9. O-O {[%clk 0:02:59.7]} 9... O-O {[%clk
0:02:53.5]} 10. b3 {[%clk 0:02:59.9]} 10... Re8 {[%clk 0:02:50.7]} 11. Bb2
{[%clk 0:02:59]} 11... Bg4 {[%clk 0:02:50.1]} 12. Rc1 {[%clk 0:02:55.7]} 12...
Bb6 {[%clk 0:02:44.7]} 13. Ne2 {[%clk 0:02:46.9]} 13... Rc8 {[%clk 0:02:41.2]}
14. Bxc6 {[%clk 0:02:35.3]} 14... bxc6 {[%clk 0:02:39.5]} 15. Ne5 {[%clk
0:02:34.9]} 15... Bxe2 {[%clk 0:02:35.8]} 16. Qxe2 {[%clk 0:02:34.4]} 16... Qd6
{[%clk 0:02:35.3]} 17. Nf3 {[%clk 0:02:21]} 17... Ng4 {[%clk 0:02:31.6]} 18. Kh1
{[%clk 0:01:58.9]} 18... d4 {[%clk 0:02:24]} 19. h3 {[%clk 0:01:51.4]} 19... d3
{[%clk 0:01:01.9]} 20. Qd2 {[%clk 0:01:45]} 20... Nf6 {[%clk 0:00:50.4]} 21.
Bxf6 {[%clk 0:01:42.5]} 21... gxf6 {[%clk 0:00:50.1]} 22. Rfd1 {[%clk 0:01:39]}
22... Rcd8 {[%clk 0:00:49.5]} 23. Ne1 {[%clk 0:01:35]} 23... Re5 {[%clk
0:00:35.9]} 24. Rc4 {[%clk 0:01:32.8]} 24... Rd5 {[%clk 0:00:31.8]} 25. Nf3
{[%clk 0:01:19.1]} 25... Ba5 {[%clk 0:00:30.6]} 26. b4 {[%clk 0:01:18.6]} 26...
Bb6 {[%clk 0:00:30.2]} 27. Rdc1 {[%clk 0:00:51.9]} 27... c5 {[%clk 0:00:29]} 28.
e4 {[%clk 0:00:52.1]} 28... Rh5 {[%clk 0:00:27.6]} 29. e5 {[%clk 0:00:52.5]}
29... fxe5 {[%clk 0:00:09.5]} 30. bxc5 {[%clk 0:00:51.4]} 30... Bxc5 {[%clk
0:00:08.1]} 31. Rxc5 {[%clk 0:00:51.3]} 31... Qe6 {[%clk 0:00:06.9]} 32. Rc6
{[%clk 0:00:38.9]} 32... Qf5 {[%clk 0:00:05.8]} 33. Qe3 {[%clk 0:00:36.3]} 33...
e4 {[%clk 0:00:05.9]} 34. Nd2 {[%clk 0:00:34.9]} 34... Rg5 {[%clk 0:00:04.7]}
35. R6c5 {[%clk 0:00:32.9]} 35... Qg6 {[%clk 0:00:02.4]} 36. Rxg5 {[%clk
0:00:32.6]} 1-0

[Event "*** SCC Grand Prix: Titled Tuesday Blitz"]
[Site "Chess.com"]
[Date "2020.10.06"]
[Round "9"]
[White "DanielDardha2005"]
[Black "GameOverBro"]
[Result "1-0"]
[WhiteElo "2686"]
[BlackElo "2520"]
[TimeControl "180+1"]
[EndTime "11:46:08 PDT"]
[Termination "DanielDardha2005 won by checkmate"]

1. Nc3 {[%clk 0:02:53.6]} 1... d6 {[%clk 0:02:56.8]} 2. Nf3 {[%clk 0:02:50.8]}
2... Nf6 {[%clk 0:02:57.7]} 3. d4 {[%clk 0:02:50]} 3... Nbd7 {[%clk 0:02:57.5]}
4. e4 {[%clk 0:02:49.8]} 4... e5 {[%clk 0:02:58.1]} 5. Bc4 {[%clk 0:02:49.4]}
5... Be7 {[%clk 0:02:58.7]} 6. O-O {[%clk 0:02:47.8]} 6... c6 {[%clk 0:02:59.1]}
7. a4 {[%clk 0:02:46.7]} 7... h6 {[%clk 0:02:59.5]} 8. Nh4 {[%clk 0:02:40.8]}
8... O-O {[%clk 0:02:57.1]} 9. Nf5 {[%clk 0:02:40.6]} 9... Nb6 {[%clk
0:02:57.4]} 10. Nxe7+ {[%clk 0:02:39.2]} 10... Qxe7 {[%clk 0:02:58.3]} 11. Bb3
{[%clk 0:02:37.6]} 11... Be6 {[%clk 0:02:49.7]} 12. a5 {[%clk 0:02:26.3]} 12...
Nbd7 {[%clk 0:02:46.4]} 13. d5 {[%clk 0:02:18.4]} 13... cxd5 {[%clk 0:02:47.3]}
14. exd5 {[%clk 0:02:18.6]} 14... Bf5 {[%clk 0:02:41.6]} 15. a6 {[%clk
0:02:16.9]} 15... Nc5 {[%clk 0:02:38]} 16. axb7 {[%clk 0:02:16.4]} 16... Qxb7
{[%clk 0:02:38]} 17. Bc4 {[%clk 0:01:57.7]} 17... a5 {[%clk 0:02:35.9]} 18. b3
{[%clk 0:01:54]} 18... Rfc8 {[%clk 0:02:28.6]} 19. f4 {[%clk 0:01:53.5]} 19...
e4 {[%clk 0:02:14.9]} 20. Be3 {[%clk 0:01:51.1]} 20... a4 {[%clk 0:02:06.6]} 21.
Rb1 {[%clk 0:01:35.5]} 21... Qb4 {[%clk 0:01:55.9]} 22. Bd4 {[%clk 0:01:28.9]}
22... Ng4 {[%clk 0:01:17.3]} 23. h3 {[%clk 0:01:23.3]} 23... Ne3 {[%clk
0:01:17]} 24. Bxe3 {[%clk 0:01:23.6]} 24... Qxc3 {[%clk 0:01:17]} 25. Bd4 {[%clk
0:01:24.5]} 25... Qb4 {[%clk 0:01:17.1]} 26. g4 {[%clk 0:01:17.1]} 26... axb3
{[%clk 0:01:13.3]} 27. cxb3 {[%clk 0:01:15.7]} 27... Ra2 {[%clk 0:01:04]} 28.
gxf5 {[%clk 0:01:10.4]} 28... Rd2 {[%clk 0:01:03.9]} 29. Qg4 {[%clk 0:01:06]}
29... Rxd4 {[%clk 0:01:01.5]} 30. f6 {[%clk 0:01:06.3]} 30... g5 {[%clk
0:00:34.2]} 31. Qxc8+ {[%clk 0:01:04.5]} 31... Kh7 {[%clk 0:00:34.2]} 32. Qf8
{[%clk 0:00:57.8]} 32... Kg6 {[%clk 0:00:33.2]} 33. Qg7+ {[%clk 0:00:56.1]}
33... Kh5 {[%clk 0:00:33.5]} 34. Qxf7+ {[%clk 0:00:54.7]} 34... Kh4 {[%clk
0:00:34]} 35. Qg6 {[%clk 0:00:50.2]} 35... Qc3 {[%clk 0:00:19.4]} 36. Qxh6+
{[%clk 0:00:48.8]} 36... Kg3 {[%clk 0:00:18.8]} 37. Qxg5+ {[%clk 0:00:48.3]}
37... Kxh3 {[%clk 0:00:19.3]} 38. Rf3+ {[%clk 0:00:38.9]} 38... Qxf3 {[%clk
0:00:17.9]} 39. Bf1+ {[%clk 0:00:39.8]} 39... Qxf1+ {[%clk 0:00:14.1]} 40. Rxf1
{[%clk 0:00:40.7]} 40... Nd3 {[%clk 0:00:13.1]} 41. f7 {[%clk 0:00:40]} 41...
Ne1 {[%clk 0:00:08.8]} 42. Rxe1 {[%clk 0:00:37.5]} 42... e3 {[%clk 0:00:08.1]}
43. Rxe3# {[%clk 0:00:37.4]} 1-0

[Event "*** SCC Grand Prix: Titled Tuesday Blitz"]
[Site "Chess.com"]
[Date "2020.10.06"]
[Round "9"]
[White "RestartingChess"]
[Black "Legendinunknown"]
[Result "0-1"]
[WhiteElo "2493"]
[BlackElo "2651"]
[TimeControl "180+1"]
[EndTime "11:46:08 PDT"]
[Termination "Legendinunknown won by checkmate"]

1. e4 {[%clk 0:03:00.9]} 1... c5 {[%clk 0:02:57.9]} 2. Nf3 {[%clk 0:03:01]} 2...
d6 {[%clk 0:02:58.5]} 3. Bb5+ {[%clk 0:03:00.7]} 3... Nd7 {[%clk 0:02:57.7]} 4.
c4 {[%clk 0:03:01.6]} 4... Nf6 {[%clk 0:02:57]} 5. Nc3 {[%clk 0:03:02.1]} 5...
g6 {[%clk 0:02:55.7]} 6. Bxd7+ {[%clk 0:03:03]} 6... Bxd7 {[%clk 0:02:55]} 7. d3
{[%clk 0:03:03.9]} 7... Bg7 {[%clk 0:02:54.4]} 8. h3 {[%clk 0:03:04.8]} 8... O-O
{[%clk 0:02:54.1]} 9. Be3 {[%clk 0:03:05.7]} 9... e6 {[%clk 0:02:52.9]} 10. Qd2
{[%clk 0:03:06.3]} 10... b6 {[%clk 0:02:52.2]} 11. Bh6 {[%clk 0:03:06.4]} 11...
Bc6 {[%clk 0:02:46.6]} 12. Bxg7 {[%clk 0:03:06.4]} 12... Kxg7 {[%clk 0:02:46.7]}
13. h4 {[%clk 0:02:48.4]} 13... h5 {[%clk 0:02:45.2]} 14. Ne2 {[%clk 0:02:45.9]}
14... d5 {[%clk 0:02:40.2]} 15. e5 {[%clk 0:02:43.4]} 15... Ng4 {[%clk
0:02:39.9]} 16. Qf4 {[%clk 0:02:20.9]} 16... dxc4 {[%clk 0:02:34.8]} 17. dxc4
{[%clk 0:02:21]} 17... f6 {[%clk 0:02:30.2]} 18. exf6+ {[%clk 0:02:11.4]} 18...
Rxf6 {[%clk 0:02:31.1]} 19. Qg3 {[%clk 0:02:11.7]} 19... Qe7 {[%clk 0:02:01.4]}
20. Ne5 {[%clk 0:02:04.3]} 20... Nxe5 {[%clk 0:01:56.9]} 21. Qxe5 {[%clk
0:02:03.4]} 21... Rd8 {[%clk 0:01:56.7]} 22. O-O {[%clk 0:01:57.9]} 22... Qd6
{[%clk 0:01:45.5]} 23. Qxd6 {[%clk 0:01:54.9]} 23... Rxd6 {[%clk 0:01:46.4]} 24.
Rad1 {[%clk 0:01:55.4]} 24... e5 {[%clk 0:01:45.7]} 25. Nc3 {[%clk 0:01:52]}
25... Rd4 {[%clk 0:01:43.2]} 26. Rfe1 {[%clk 0:01:45.9]} 26... Rxh4 {[%clk
0:01:34.7]} 27. Rxe5 {[%clk 0:01:44.3]} 27... Rxc4 {[%clk 0:01:34.6]} 28. Re7+
{[%clk 0:01:42.4]} 28... Rf7 {[%clk 0:01:34.3]} 29. Rxf7+ {[%clk 0:01:36.8]}
29... Kxf7 {[%clk 0:01:35.2]} 30. Rd6 {[%clk 0:01:37.2]} 30... Be8 {[%clk
0:01:33]} 31. Rd8 {[%clk 0:01:36]} 31... Rd4 {[%clk 0:01:28.6]} 32. Ra8 {[%clk
0:01:33.9]} 32... Rd7 {[%clk 0:01:27.8]} 33. Ne4 {[%clk 0:01:33.6]} 33... Ke7
{[%clk 0:01:15.6]} 34. Ng5 {[%clk 0:01:22.7]} 34... Bf7 {[%clk 0:01:11.5]} 35.
Rh8 {[%clk 0:01:21.7]} 35... Bxa2 {[%clk 0:01:10.3]} 36. Rh7+ {[%clk 0:01:19.1]}
36... Kd6 {[%clk 0:01:10.1]} 37. Rh6 {[%clk 0:01:15.4]} 37... Rg7 {[%clk
0:01:05.2]} 38. f4 {[%clk 0:01:15.9]} 38... Bb1 {[%clk 0:01:03.6]} 39. Rh8
{[%clk 0:01:14.4]} 39... Re7 {[%clk 0:01:01.5]} 40. Kf2 {[%clk 0:01:13.2]} 40...
Kc6 {[%clk 0:01:00.3]} 41. Nf3 {[%clk 0:01:09.8]} 41... Kb5 {[%clk 0:00:58.4]}
42. Ne5 {[%clk 0:01:08.8]} 42... g5 {[%clk 0:00:49]} 43. g3 {[%clk 0:01:09]}
43... h4 {[%clk 0:00:49.1]} 44. fxg5 {[%clk 0:00:38.2]} 44... hxg3+ {[%clk
0:00:47.4]} 45. Kxg3 {[%clk 0:00:37.9]} 45... Rxe5 {[%clk 0:00:48.3]} 46. Kf4
{[%clk 0:00:38.8]} 46... Re4+ {[%clk 0:00:47.6]} 47. Kf3 {[%clk 0:00:39]} 47...
Rb4 {[%clk 0:00:46.5]} 48. Rg8 {[%clk 0:00:37.6]} 48... Rxb2 {[%clk 0:00:45.5]}
49. g6 {[%clk 0:00:38.2]} 49... Bxg6 {[%clk 0:00:44.8]} 50. Rxg6 {[%clk
0:00:38.3]} 50... a5 {[%clk 0:00:45.5]} 51. Ke3 {[%clk 0:00:38.3]} 51... a4
{[%clk 0:00:45.9]} 52. Kd3 {[%clk 0:00:39]} 52... a3 {[%clk 0:00:46.4]} 53. Kc3
{[%clk 0:00:39.6]} 53... Rb1 {[%clk 0:00:45.8]} 54. Rg2 {[%clk 0:00:39.1]} 54...
Ka4 {[%clk 0:00:45.2]} 55. Ra2 {[%clk 0:00:38.6]} 55... b5 {[%clk 0:00:44.8]}
56. Kc2 {[%clk 0:00:39.5]} 56... Rh1 {[%clk 0:00:43.2]} 57. Rb2 {[%clk
0:00:40.4]} 57... Rh2+ {[%clk 0:00:42.4]} 58. Kb1 {[%clk 0:00:40.2]} 58... Rxb2+
{[%clk 0:00:41.5]} 59. Ka1 {[%clk 0:00:41.1]} 59... Rh2 {[%clk 0:00:42.1]} 60.
Kb1 {[%clk 0:00:41.4]} 60... Kb3 {[%clk 0:00:42.7]} 61. Ka1 {[%clk 0:00:42.1]}
61... Rh1# {[%clk 0:00:43.6]} 0-1

[Event "*** SCC Grand Prix: Titled Tuesday Blitz"]
[Site "Chess.com"]
[Date "2020.10.06"]
[Round "9"]
[White "Sesleria"]
[Black "Evachess2006"]
[Result "1-0"]
[WhiteElo "2097"]
[BlackElo "1623"]
[TimeControl "180+1"]
[EndTime "11:46:09 PDT"]
[Termination "Sesleria won on time"]

1. e4 {[%clk 0:03:00.9]} 1... e5 {[%clk 0:02:54.3]} 2. Nf3 {[%clk 0:03:00.2]}
2... Nc6 {[%clk 0:02:55.2]} 3. Bb5 {[%clk 0:02:59.8]} 3... a6 {[%clk 0:02:24.2]}
4. Ba4 {[%clk 0:02:59.1]} 4... Nf6 {[%clk 0:02:03.5]} 5. O-O {[%clk 0:02:57.6]}
5... b5 {[%clk 0:02:00.9]} 6. Bb3 {[%clk 0:02:57.4]} 6... Be7 {[%clk 0:01:58]}
7. Re1 {[%clk 0:02:56.8]} 7... O-O {[%clk 0:01:54.1]} 8. a4 {[%clk 0:02:56.9]}
8... b4 {[%clk 0:01:48.8]} 9. d3 {[%clk 0:02:54.1]} 9... d6 {[%clk 0:01:01.4]}
10. a5 {[%clk 0:02:50.2]} 10... Bg4 {[%clk 0:00:55.5]} 11. Nbd2 {[%clk
0:02:49.4]} 11... Nd4 {[%clk 0:00:53.4]} 12. Bc4 {[%clk 0:02:47.3]} 12... c6
{[%clk 0:00:46.9]} 13. h3 {[%clk 0:02:46.6]} 13... Bh5 {[%clk 0:00:38]} 14. c3
{[%clk 0:02:42.7]} 14... Nxf3+ {[%clk 0:00:33.8]} 15. Nxf3 {[%clk 0:02:41.7]}
15... d5 {[%clk 0:00:34.3]} 16. Bb3 {[%clk 0:02:11.3]} 16... dxe4 {[%clk
0:00:29.4]} 17. dxe4 {[%clk 0:02:11.5]} 17... Qxd1 {[%clk 0:00:23.2]} 18. Bxd1
{[%clk 0:02:10.8]} 18... bxc3 {[%clk 0:00:22]} 19. bxc3 {[%clk 0:02:10.5]} 19...
Rfd8 {[%clk 0:00:18.7]} 20. g4 {[%clk 0:01:43.6]} 20... Bg6 {[%clk 0:00:13]} 21.
Nxe5 {[%clk 0:01:43.5]} 21... Bxe4 {[%clk 0:00:07.9]} 22. Bf4 {[%clk 0:01:42.3]}
22... Bd6 {[%clk 0:00:04.1]} 23. g5 {[%clk 0:01:31.9]} 23... Bxe5 {[%clk
0:00:04.1]} 24. Bxe5 {[%clk 0:01:30.1]} 24... Re8 {[%clk 0:00:03.8]} 25. f4
{[%clk 0:01:12.3]} 25... Nd7 {[%clk 0:00:02.1]} 26. Rxe4 {[%clk 0:01:09.9]}
26... Nxe5 {[%clk 0:00:03]} 27. Rxe5 {[%clk 0:01:09.2]} 27... c5 {[%clk
0:00:03.9]} 28. Bf3 {[%clk 0:01:08.5]} 28... Rxe5 {[%clk 0:00:02.8]} 29. fxe5
{[%clk 0:01:05.4]} 29... Re8 {[%clk 0:00:03.7]} 30. Re1 {[%clk 0:01:04.9]} 30...
f6 {[%clk 0:00:04.6]} 31. gxf6 {[%clk 0:01:04.6]} 31... gxf6 {[%clk 0:00:04.5]}
32. Bd5+ {[%clk 0:01:04.8]} 32... Kf8 {[%clk 0:00:04.5]} 33. e6 {[%clk 0:01:05]}
33... Ke7 {[%clk 0:00:04.5]} 34. c4 {[%clk 0:01:05.4]} 34... Kd6 {[%clk
0:00:04.6]} 35. Kf2 {[%clk 0:01:04.3]} 35... Rg8 {[%clk 0:00:04.8]} 36. Rg1
{[%clk 0:01:03.5]} 36... Re8 {[%clk 0:00:04.5]} 37. Rg7 {[%clk 0:01:03.1]} 37...
Re7 {[%clk 0:00:03.7]} 38. Rxe7 {[%clk 0:01:01.6]} 38... Kxe7 {[%clk 0:00:04.6]}
39. Kf3 {[%clk 0:01:02]} 39... h6 {[%clk 0:00:03]} 40. Kf4 {[%clk 0:01:02.2]}
40... h5 {[%clk 0:00:01.6]} 41. Kf5 {[%clk 0:01:02.4]} 41... h4 {[%clk 0:00:02]}
42. Kg4 {[%clk 0:01:02.3]} 42... Kd6 {[%clk 0:00:02.3]} 43. Kxh4 {[%clk
0:01:02.6]} 43... Ke7 {[%clk 0:00:02.8]} 44. Kg4 {[%clk 0:01:02.9]} 44... Kd6
{[%clk 0:00:03.1]} 45. Kf5 {[%clk 0:01:03.3]} 45... Ke7 {[%clk 0:00:03.6]} 46.
h4 {[%clk 0:01:03.9]} 46... Kd6 {[%clk 0:00:03.2]} 47. Kxf6 {[%clk 0:01:04.3]}
47... Kc7 {[%clk 0:00:03.7]} 48. e7 {[%clk 0:01:04.8]} 48... Kd6 {[%clk
0:00:02.5]} 49. e8=Q {[%clk 0:01:02.4]} 49... Kc7 {[%clk 0:00:03.4]} 50. Qc6+
{[%clk 0:01:02.1]} 1-0

[Event "*** SCC Grand Prix: Titled Tuesday Blitz"]
[Site "Chess.com"]
[Date "2020.10.06"]
[Round "9"]
[White "Region_07"]
[Black "rududuyk"]
[Result "1-0"]
[WhiteElo "2375"]
[BlackElo "2167"]
[TimeControl "180+1"]
[EndTime "11:46:10 PDT"]
[Termination "Region_07 won on time"]

1. d4 {[%clk 0:03:00.8]} 1... e6 {[%clk 0:03:00.1]} 2. Nf3 {[%clk 0:02:58.2]}
2... f5 {[%clk 0:03:00.1]} 3. c4 {[%clk 0:02:48.1]} 3... Nf6 {[%clk 0:03:00.2]}
4. Nc3 {[%clk 0:02:48.1]} 4... Be7 {[%clk 0:02:57.3]} 5. Bf4 {[%clk 0:02:47.3]}
5... O-O {[%clk 0:02:57.2]} 6. Qc2 {[%clk 0:02:46.9]} 6... b6 {[%clk 0:02:47.2]}
7. e3 {[%clk 0:02:45.6]} 7... Bb7 {[%clk 0:02:47.5]} 8. Bd3 {[%clk 0:02:45.6]}
8... d5 {[%clk 0:02:29.5]} 9. O-O-O {[%clk 0:02:41.5]} 9... Ne4 {[%clk
0:02:23.3]} 10. Ne5 {[%clk 0:02:37.4]} 10... Nc6 {[%clk 0:02:13]} 11. a3 {[%clk
0:02:30.9]} 11... Nxe5 {[%clk 0:02:09.7]} 12. Bxe5 {[%clk 0:02:31.8]} 12... c5
{[%clk 0:01:57.1]} 13. Kb1 {[%clk 0:02:26.4]} 13... Rc8 {[%clk 0:01:46.2]} 14.
g4 {[%clk 0:02:23.3]} 14... cxd4 {[%clk 0:01:37.3]} 15. exd4 {[%clk 0:02:16.8]}
15... dxc4 {[%clk 0:01:29.7]} 16. Bxe4 {[%clk 0:02:11.3]} 16... fxe4 {[%clk
0:01:27.4]} 17. Nxe4 {[%clk 0:02:12.2]} 17... c3 {[%clk 0:01:20.1]} 18. Rhe1
{[%clk 0:01:47.8]} 18... cxb2 {[%clk 0:01:15.6]} 19. Qxb2 {[%clk 0:01:48.7]}
19... Qd5 {[%clk 0:00:53.4]} 20. f4 {[%clk 0:01:35.6]} 20... Rc4 {[%clk
0:00:47]} 21. Nc3 {[%clk 0:01:22.7]} 21... Qc6 {[%clk 0:00:44.2]} 22. d5 {[%clk
0:01:21.4]} 22... exd5 {[%clk 0:00:42.4]} 23. Nxd5 {[%clk 0:01:22.3]} 23... Bxa3
{[%clk 0:00:31.8]} 24. Qxa3 {[%clk 0:01:16.8]} 24... Qb5+ {[%clk 0:00:25.8]} 25.
Qb2 {[%clk 0:01:06.8]} 25... Qa4 {[%clk 0:00:25.9]} 26. Nc3 {[%clk 0:00:50.6]}
26... Qa5 {[%clk 0:00:23]} 27. Qb3 {[%clk 0:00:37.7]} 27... Rc8 {[%clk
0:00:21.3]} 28. Rd8+ {[%clk 0:00:36.4]} 28... Rxd8 {[%clk 0:00:17.6]} 29. Qxc4+
{[%clk 0:00:36.4]} 29... Bd5 {[%clk 0:00:18]} 30. Qc7 {[%clk 0:00:26.8]} 30...
Qb4+ {[%clk 0:00:16.3]} 31. Kc2 {[%clk 0:00:24.8]} 31... Qb3+ {[%clk 0:00:15.8]}
32. Kd2 {[%clk 0:00:20.4]} 32... Qb2+ {[%clk 0:00:12.6]} 33. Ke3 {[%clk
0:00:20.3]} 1-0

[Event "*** SCC Grand Prix: Titled Tuesday Blitz"]
[Site "Chess.com"]
[Date "2020.10.06"]
[Round "9"]
[White "Sanyura"]
[Black "markberk"]
[Result "1-0"]
[WhiteElo "2542"]
[BlackElo "2394"]
[TimeControl "180+1"]
[EndTime "11:46:14 PDT"]
[Termination "Sanyura won on time"]

1. e4 {[%clk 0:03:00.9]} 1... c6 {[%clk 0:02:59.1]} 2. Nc3 {[%clk 0:02:56.9]}
2... d5 {[%clk 0:02:58.6]} 3. d4 {[%clk 0:02:57]} 3... dxe4 {[%clk 0:02:57.5]}
4. Nxe4 {[%clk 0:02:57.9]} 4... Nf6 {[%clk 0:02:57.3]} 5. Ng3 {[%clk 0:02:55.6]}
5... h5 {[%clk 0:02:55.8]} 6. h4 {[%clk 0:02:52.4]} 6... c5 {[%clk 0:02:54.5]}
7. Nf3 {[%clk 0:02:48.4]} 7... Nc6 {[%clk 0:02:52.2]} 8. Bb5 {[%clk 0:02:46.2]}
8... Bg4 {[%clk 0:02:39.5]} 9. Bxc6+ {[%clk 0:02:43.2]} 9... bxc6 {[%clk
0:02:38.1]} 10. O-O {[%clk 0:02:27.5]} 10... e6 {[%clk 0:02:33.1]} 11. c3 {[%clk
0:02:25.9]} 11... Qd5 {[%clk 0:02:26.4]} 12. Bg5 {[%clk 0:02:06.2]} 12... Be7
{[%clk 0:02:22.8]} 13. Re1 {[%clk 0:01:54.3]} 13... Bxf3 {[%clk 0:02:20.7]} 14.
Qxf3 {[%clk 0:01:55.2]} 14... Qxf3 {[%clk 0:02:19]} 15. gxf3 {[%clk 0:01:56.1]}
15... cxd4 {[%clk 0:02:18.1]} 16. cxd4 {[%clk 0:01:55.8]} 16... Rb8 {[%clk
0:02:07.4]} 17. b3 {[%clk 0:01:55.3]} 17... Rb4 {[%clk 0:01:56.5]} 18. Rac1
{[%clk 0:01:42.6]} 18... Kd7 {[%clk 0:01:55.6]} 19. Red1 {[%clk 0:01:33.4]}
19... Nd5 {[%clk 0:01:40.1]} 20. Ne4 {[%clk 0:01:31.1]} 20... f6 {[%clk
0:01:36.2]} 21. Be3 {[%clk 0:00:46.4]} 21... f5 {[%clk 0:01:31.4]} 22. Nc5+
{[%clk 0:00:46.3]} 22... Bxc5 {[%clk 0:01:29.1]} 23. dxc5 {[%clk 0:00:47.2]}
23... Rxh4 {[%clk 0:01:25.1]} 24. Rc4 {[%clk 0:00:43.8]} 24... g5 {[%clk
0:01:04.7]} 25. Bxg5 {[%clk 0:00:35.9]} 25... Rg8 {[%clk 0:00:37.6]} 26. Rxh4
{[%clk 0:00:35.1]} 26... Rxg5+ {[%clk 0:00:37.3]} 27. Kf1 {[%clk 0:00:34.9]}
27... Ke7 {[%clk 0:00:32.8]} 28. Ra4 {[%clk 0:00:29.1]} 28... Kf6 {[%clk
0:00:15.9]} 29. Rxa7 {[%clk 0:00:29.2]} 29... Nf4 {[%clk 0:00:13.5]} 30. Rh7
{[%clk 0:00:25.6]} 30... Ke5 {[%clk 0:00:09.1]} 31. Rd6 {[%clk 0:00:23.6]} 31...
Rg2 {[%clk 0:00:07.1]} 32. Rxh5 {[%clk 0:00:18.1]} 1-0

[Event "*** SCC Grand Prix: Titled Tuesday Blitz"]
[Site "Chess.com"]
[Date "2020.10.06"]
[Round "9"]
[White "remi04"]
[Black "Snegokhod"]
[Result "0-1"]
[WhiteElo "2533"]
[BlackElo "2412"]
[TimeControl "180+1"]
[EndTime "11:46:20 PDT"]
[Termination "Snegokhod won by resignation"]

1. e4 {[%clk 0:03:00.9]} 1... c5 {[%clk 0:02:59.8]} 2. Nf3 {[%clk 0:03:00.4]}
2... d6 {[%clk 0:02:59.5]} 3. d4 {[%clk 0:03:00.6]} 3... cxd4 {[%clk 0:02:59.8]}
4. Nxd4 {[%clk 0:03:01.5]} 4... Nf6 {[%clk 0:02:59.8]} 5. Nc3 {[%clk 0:03:02]}
5... a6 {[%clk 0:02:59.7]} 6. Be3 {[%clk 0:03:00.2]} 6... Ng4 {[%clk 0:02:58.8]}
7. Bc1 {[%clk 0:02:58]} 7... Nc6 {[%clk 0:02:57.7]} 8. h3 {[%clk 0:02:57.1]}
8... Nge5 {[%clk 0:02:56.7]} 9. f4 {[%clk 0:02:53.2]} 9... Nxd4 {[%clk
0:02:55.6]} 10. Qxd4 {[%clk 0:02:52.1]} 10... Nc6 {[%clk 0:02:55.7]} 11. Qf2
{[%clk 0:02:49.1]} 11... e6 {[%clk 0:02:55.1]} 12. Bd3 {[%clk 0:02:47.1]} 12...
Be7 {[%clk 0:02:54.8]} 13. O-O {[%clk 0:02:47.1]} 13... O-O {[%clk 0:02:54.8]}
14. Be3 {[%clk 0:02:46]} 14... Bf6 {[%clk 0:02:52.6]} 15. Rad1 {[%clk
0:02:41.2]} 15... Qc7 {[%clk 0:02:48.8]} 16. e5 {[%clk 0:02:35.6]} 16... dxe5
{[%clk 0:02:46.9]} 17. Ne4 {[%clk 0:02:35.1]} 17... Be7 {[%clk 0:02:42.2]} 18.
Ng5 {[%clk 0:02:02.7]} 18... h6 {[%clk 0:02:28]} 19. Ne4 {[%clk 0:01:49.2]}
19... f5 {[%clk 0:02:23.4]} 20. Bb6 {[%clk 0:01:43]} 20... Qb8 {[%clk
0:02:21.8]} 21. Nc5 {[%clk 0:01:42.3]} 21... exf4 {[%clk 0:02:08.2]} 22. Bc4
{[%clk 0:01:41.5]} 22... Qe5 {[%clk 0:01:53.2]} 23. Rfe1 {[%clk 0:01:39.9]}
23... Qxb2 {[%clk 0:01:52.3]} 24. Nxe6 {[%clk 0:01:23.6]} 24... Bxe6 {[%clk
0:01:44.4]} 25. Rxe6 {[%clk 0:01:21.5]} 25... Kh7 {[%clk 0:01:34]} 26. Rd7
{[%clk 0:01:14.8]} 26... Bf6 {[%clk 0:01:28.3]} 27. Bd3 {[%clk 0:00:57.3]} 27...
Rae8 {[%clk 0:01:09.5]} 28. Bxf5+ {[%clk 0:00:51.3]} 28... Kg8 {[%clk
0:01:05.8]} 29. Rxb7 {[%clk 0:00:47.6]} 29... Qc1+ {[%clk 0:01:04]} 30. Kh2
{[%clk 0:00:47]} 30... f3 {[%clk 0:00:51.6]} 31. g3 {[%clk 0:00:27.4]} 31... Ne5
{[%clk 0:00:42.2]} 32. Bd4 {[%clk 0:00:22.4]} 32... Rxe6 {[%clk 0:00:33.5]} 33.
Bxe6+ {[%clk 0:00:22.2]} 33... Kh8 {[%clk 0:00:34]} 34. Be3 {[%clk 0:00:18.2]}
34... Qd1 {[%clk 0:00:32.1]} 35. Bf5 {[%clk 0:00:11.2]} 35... Rd8 {[%clk
0:00:27.5]} 36. Bxh6 {[%clk 0:00:04.8]} 36... gxh6 {[%clk 0:00:25.5]} 37. Rh7+
{[%clk 0:00:04.3]} 37... Kg8 {[%clk 0:00:25.2]} 38. Rxh6 {[%clk 0:00:03.9]}
38... Rd2 {[%clk 0:00:25.1]} 0-1